bitfinex/quotes_ETHUSD_20251108
["timestamp","ask_amount","ask_price","bid_price","bid_amount"]
[1762620421573,0.002,3373.1,3372.6,0.9193]
[1762620421775,0.002,3373.1,3372.6,3.88436268]
[1762620421776,1.259712,3373.0,3372.6,3.88436268]
[1762620421949,0.002,3373.1,3372.6,0.4618]
[1762620422383,0.405504,3372.6,3372.1,0.1376]
[1762620422620,0.148,3372.3,3371.4,0.149]
[1762620422886,0.148,3372.0,3371.9,2.96568024]
[1762620423082,0.148,3372.0,3371.9,3.88128024]
[1762620423268,0.148,3372.0,3371.9,0.9156]
[1762620424114,0.148,3372.0,3371.9,0.4581]
[1762620424297,3.42495309,3372.0,3371.4,0.001]
[1762620424496,0.148,3371.6,3371.4,2.96707133]
[1762620424692,0.148,3371.6,3371.5,2.96603885]
[1762620424897,0.148,3371.6,3371.5,3.88163885]
[1762620425307,0.148,3371.6,3371.5,0.9156]
[1762620425477,0.148,3371.6,3371.5,0.4581]
[1762620425875,0.148,3371.6,3371.5,3.42413885]
[1762620427037,0.148,3371.6,3371.5,3.88163885]
[1762620428319,0.148,3371.6,3371.5,4.56652375]
[1762620428493,0.148,3371.9,3371.8,2.96573254]
[1762620428896,0.148,3371.9,3371.8,3.88133254]
[1762620429308,0.002,3372.1,3372.0,2.96559905]
[1762620429482,0.002,3372.1,3372.0,3.42369905]
[1762620429682,0.002,3372.1,3372.0,3.88119905]
[1762620429911,0.002,3372.1,3372.0,4.90691308]
[1762620430125,0.002,3372.1,3372.0,4.87725709]
[1762620431182,0.002,3372.1,3372.0,4.41975709]
[1762620431516,0.002,3372.1,3372.0,3.42369905]
[1762620431682,0.002,3372.1,3372.0,3.88119905]
[1762620431883,0.002,3372.1,3372.0,0.4581]
[1762620432312,0.002,3372.1,3371.4,0.4585]
[1762620432609,0.002,3372.1,3372.0,3.42369905]
[1762620432797,0.002,3372.1,3372.0,3.88119905]
[1762620433414,0.002,3372.1,3372.0,4.56885377]
[1762620433786,0.002,3372.1,3372.0,3.42369905]
[1762620434119,0.002,3372.1,3372.0,0.4581]
[1762620434507,0.002,3372.1,3372.0,3.42369905]
[1762620436004,0.002,3372.1,3372.0,3.88119905]
[1762620436209,0.002,3372.1,3372.0,3.91085504]
[1762620436417,0.002,3372.1,3372.0,4.56885053]
[1762620438042,0.002,3372.5,3372.4,2.9652473]
[1762620438248,0.002,3372.5,3372.4,3.4233473]
[1762620438544,0.002,3372.5,3372.4,3.8808473]
[1762620439597,0.002,3373.6,3373.0,2.96471983]
[1762620439829,0.002,3373.6,3373.0,3.71929181]
[1762620440135,0.148,3373.4,3373.0,3.71929181]
[1762620440708,0.4967,3373.1,3372.2,0.4575]
[1762620441047,0.148,3373.0,3372.7,2.96494763]
[1762620441699,0.148,3373.0,3372.9,0.4581]
[1762620441929,0.148,3373.0,3372.9,3.42290773]
[1762620442131,0.148,3373.0,3372.9,3.88040773]
[1762620442953,0.148,3373.0,3372.4,0.148]
[1762620443137,0.6427,3373.0,3372.5,2.96515937]
[1762620443301,0.9509,3373.0,3372.5,2.96509372]
[1762620443501,0.9509,3373.0,3372.4,2.96516332]
[1762620443502,0.148,3372.6,3372.4,2.96516332]
[1762620443999,0.148,3372.6,3372.2,2.96542316]
[1762620444214,0.148,3372.6,3372.5,3.42325937]
[1762620444422,0.002,3373.0,3372.8,2.96489383]
[1762620444739,0.002,3373.0,3372.7,2.96495094]
[1762620445138,0.148,3372.7,3372.5,0.4575]
[1762620445299,0.148,3372.7,3372.6,2.96507145]
[1762620445504,0.148,3372.7,3372.6,3.42317145]
[1762620446506,0.002,3373.0,3372.9,2.96480773]
[1762620446841,0.002,3373.0,3372.9,3.42290773]
[1762620448210,0.002,3373.0,3372.7,2.96492518]
[1762620448747,0.002,3373.0,3372.5,0.49027842]
[1762620448905,0.148,3372.9,3372.6,2.96500338]
[1762620449110,0.148,3372.9,3372.6,2.96501827]
[1762620449823,0.148,3372.9,3372.6,2.96502338]
[1762620450340,0.148,3372.9,3372.4,2.96520333]
[1762620450341,0.148,3372.9,3372.7,2.96498333]
[1762620450730,0.148,3372.9,3372.6,2.96504209]
[1762620451656,0.148,3372.9,3372.5,1.259712]
[1762620451959,0.148,3372.9,3372.8,2.96489563]
[1762620452367,0.148,3372.9,3372.7,2.96494441]
[1762620453161,0.148,3372.9,3372.8,0.4597]
[1762620454325,0.148,3372.9,3372.8,3.42459563]
[1762620455359,0.148,3372.9,3372.8,0.4597]
[1762620455561,0.148,3372.9,3372.6,2.96501221]
[1762620455934,0.148,3372.9,3372.7,2.96497742]
[1762620456243,0.148,3372.9,3372.6,2.96505657]
[1762620456552,0.148,3372.9,3372.8,0.4597]
[1762620456762,0.148,3372.9,3372.8,3.42459563]
[1762620456961,0.148,3372.9,3372.8,0.4597]
[1762620457161,0.5989,3372.9,3372.6,2.96503894]
[1762620457356,0.5989,3372.9,3372.7,2.96497565]
[1762620458159,0.148,3372.9,3372.7,2.96497565]
[1762620458661,0.148,3372.9,3372.8,2.96489563]
[1762620458835,0.148,3372.9,3372.8,3.42459563]
[1762620462775,0.148,3372.9,3372.8,4.56813097]
[1762620464977,0.002,3373.0,3372.9,2.96480773]
[1762620465165,0.002,3373.0,3372.9,3.94520773]
[1762620465689,0.002,3373.0,3372.9,3.45450773]
[1762620466971,0.002,3373.0,3372.9,3.9748558]
[1762620467178,0.002,3373.0,3372.9,4.75211448]
[1762620467378,0.002,3373.0,3372.9,4.87046641]
[1762620468277,0.002,3373.0,3372.9,4.72246641]
[1762620473680,0.002,3373.0,3372.9,8.58246641]
[1762620474080,1e-08,3373.1,3373.0,5.20483183]
[1762620474285,1e-08,3373.1,3373.0,6.88014194]
[1762620474598,1e-08,3373.1,3373.0,6.85049475]
[1762620474986,1e-08,3373.1,3373.0,7.25599875]
[1762620475188,1e-08,3373.1,3373.0,11.11599875]
[1762620478498,1e-08,3373.1,3373.0,11.26399875]
[1762620479072,1e-08,3373.1,3373.0,7.40399875]
[1762620480829,1e-08,3373.1,3373.0,7.25599875]
[1762620481111,1e-08,3373.1,3373.0,6.99849475]
[1762620481275,1e-08,3373.1,3373.0,6.96879475]
[1762620482412,1e-08,3373.1,3373.0,6.50779475]
[1762620483024,0.46810001,3373.1,3373.0,4.75838275]
[1762620483238,0.95440001,3373.1,3373.0,3.11271983]
[1762620483509,0.95440001,3373.1,3373.0,2.96471983]
[1762620483815,0.95440001,3373.1,3372.9,2.96478763]
[1762620484040,0.7542,3373.0,3372.9,2.96478763]
[1762620485122,0.7542,3373.0,3372.6,0.148]
[1762620485333,0.4863,3372.9,3372.7,2.96498354]
[1762620485826,0.6513,3372.8,3372.7,2.96498354]
[1762620485985,0.148,3373.0,3372.9,2.96480773]
[1762620486186,0.4681,3373.0,3372.9,2.96480773]
[1762620486731,0.9544,3373.0,3372.9,2.96480773]
[1762620487031,0.4681,3373.0,3372.9,2.96480773]
[1762620487802,0.9544,3373.0,3372.9,2.96480773]
[1762620488238,0.9544,3373.0,3372.7,2.96490261]
[1762620488439,0.4636,3372.8,3372.7,2.96490261]
[1762620488919,0.9499,3372.8,3372.7,2.96490261]
[1762620489517,1e-08,3373.1,3373.0,2.96471983]
[1762620489820,0.4681,3372.8,3372.7,2.96498354]
[1762620491140,1e-08,3373.1,3372.9,2.96480773]
[1762620491346,1e-08,3373.1,3373.0,2.96471983]
[1762620491942,0.46810001,3373.1,3373.0,2.96471983]
[1762620492643,0.95440001,3373.1,3372.6,0.148]
[1762620492843,0.6513,3372.7,3372.5,2.96608334]
[1762620493044,0.2804,3372.6,3372.5,0.001]
[1762620493348,0.9147,3372.6,3372.5,2.96615937]
[1762620493542,0.9147,3372.6,3372.5,0.001]
[1762620493847,0.9147,3372.6,3372.5,2.96615937]
[1762620494140,0.4284,3372.6,3372.5,2.96615937]
[1762620494350,0.9147,3372.6,3372.5,2.96615937]
[1762620495335,0.9147,3372.6,3372.5,0.001]
[1762620496417,1.32097476,3372.6,3372.5,0.001]
[1762620496721,4.28604621,3372.6,3372.5,0.001]
[1762620496925,1.32097476,3372.6,3372.5,0.001]
[1762620497111,0.9147,3372.6,3372.5,0.001]
[1762620497517,0.90665455,3372.6,3372.5,0.001]
[1762620498332,0.89119278,3372.9,3372.5,0.48915159]
[1762620498529,0.89119278,3372.9,3372.8,2.96489563]
[1762620498853,1e-08,3373.1,3373.0,2.96471983]
[1762620499355,0.95440001,3373.1,3373.0,2.96471983]
[1762620499526,0.95440001,3373.1,3372.5,0.001]
[1762620499734,0.6494,3372.6,3372.5,0.001]
[1762620500116,1.1357,3372.6,3372.5,2.96615937]
[1762620500728,1.1357,3372.6,3372.5,0.001]
[1762620501560,0.6494,3372.6,3372.5,0.001]
[1762620501720,0.6494,3372.6,3372.5,2.96615937]
[1762620501721,0.4662,3372.6,3372.5,2.96615937]
[1762620502214,1e-08,3373.1,3372.5,3.56226575]
[1762620502416,1e-08,3373.1,3373.0,2.96471983]
[1762620502973,0.46810001,3373.1,3373.0,2.96471983]
[1762620503560,1e-08,3373.1,3373.0,2.96471983]
[1762620504687,1e-08,3373.1,3373.0,3.88421983]
[1762620504889,1e-08,3373.1,3373.0,4.56922304]
[1762620505080,1e-08,3373.1,3373.0,4.59887023]
[1762620505479,3.91908371,3373.1,3372.9,0.001]
[1762620505792,0.2725,3373.0,3372.9,0.001]
[1762620506091,0.7588,3373.0,3372.9,0.001]
[1762620506860,3.72351983,3373.0,3372.9,0.001]
[1762620507914,0.7588,3373.0,3372.9,0.001]
[1762620509274,4.12606666,3373.0,3372.9,0.001]
[1762620509897,1.16134683,3373.0,3372.9,0.001]
[1762620510064,0.7588,3373.0,3372.9,0.001]
[1762620511595,1e-08,3373.1,3372.9,0.001]
[1762620511906,1e-08,3373.1,3373.0,2.96471983]
[1762620512209,1e-08,3373.1,3373.0,3.44781983]
[1762620512376,1e-08,3373.1,3373.0,3.59581983]
[1762620512569,1e-08,3373.1,3373.0,4.29913952]
[1762620512765,1e-08,3373.1,3373.0,3.81603952]
[1762620512987,1e-08,3373.1,3373.0,4.29913952]
[1762620513593,1e-08,3373.1,3373.0,4.77063952]
[1762620513823,1e-08,3373.1,3373.0,4.29913952]
[1762620515407,1e-08,3373.1,3373.0,3.81603952]
[1762620515581,0.47170001,3373.1,3372.9,2.9657591]
[1762620515782,0.4717,3373.0,3372.9,0.001]
[1762620515971,0.4717,3373.0,3372.9,2.96580773]
[1762620516178,0.14800001,3373.1,3372.9,0.001]
[1762620516376,0.14800001,3373.1,3372.9,2.96573829]
[1762620516977,0.4717,3373.0,3372.9,0.001]
[1762620517282,0.14800001,3373.1,3372.9,0.001]
[1762620517492,0.14800001,3373.1,3372.9,2.96575772]
[1762620518083,0.4717,3373.0,3372.9,0.001]
[1762620518486,0.9563,3373.0,3372.9,0.001]
[1762620518807,0.4717,3373.0,3372.9,2.96580773]
[1762620519912,0.14800001,3373.1,3373.0,2.96471983]
[1762620520474,0.14800001,3373.1,3372.9,0.001]
[1762620521021,0.4717,3373.0,3372.9,0.001]
[1762620521535,0.14800001,3373.1,3373.0,2.96471983]
[1762620522007,1e-08,3373.1,3373.0,3.44781983]
[1762620522214,1e-08,3373.1,3373.0,4.09215523]
[1762620524606,1e-08,3373.1,3373.0,3.60905523]
[1762620524799,1e-08,3373.1,3373.0,4.13470242]
[1762620526713,1e-08,3373.1,3373.0,4.73635523]
[1762620527010,1e-08,3373.1,3373.0,4.76600242]
[1762620527414,1e-08,3373.1,3373.0,4.73635523]
[1762620527598,1e-08,3373.1,3373.0,4.76600242]
[1762620528312,1e-08,3373.1,3373.0,5.99606723]
[1762620534831,0.002,3373.6,3373.0,5.99606723]
[1762620534832,1e-08,3373.6,3373.5,3.46028042]
[1762620534998,1e-08,3373.6,3373.5,12.9995545]
[1762620535197,1e-08,3373.6,3373.5,5.65890371]
[1762620535811,0.49400001,3373.6,3373.5,3.90319171]
[1762620536011,0.49400001,3373.6,3373.5,2.96428042]
[1762620536212,0.96690001,3373.6,3373.5,2.96428042]
[1762620536612,0.96690001,3373.6,3373.0,0.6443354]
[1762620536816,0.2541,3373.4,3373.0,2.96471983]
[1762620537016,0.2541,3373.4,3373.3,2.96445617]
[1762620537307,1e-08,3373.6,3373.5,2.96428042]
[1762620537747,0.49400001,3373.6,3373.5,2.96428042]
[1762620538542,1e-08,3373.6,3373.5,3.46028042]
[1762620538727,1e-08,3373.6,3373.5,3.60675408]
[1762620539719,1e-08,3373.6,3373.5,4.10275408]
[1762620541143,1e-08,3373.6,3373.5,7.96275408]
[1762620541646,1e-08,3373.6,3373.5,8.42825408]
[1762620541842,1e-08,3373.6,3373.5,15.36340087]
[1762620542228,0.002,3374.1,3374.0,2.96384113]
[1762620542559,0.002,3374.1,3374.0,12.28876585]
[1762620542760,0.002,3374.1,3374.0,12.72462744]
[1762620543748,0.002,3374.1,3374.0,13.13013144]
[1762620544427,0.002,3374.1,3374.0,6.19498465]
[1762620544837,0.002,3374.1,3374.0,6.34298465]
[1762620545034,0.002,3374.1,3374.0,5.47198065]
[1762620545250,0.4884,3374.1,3374.0,2.96384113]
[1762620545414,0.002,3374.1,3374.0,2.96384113]
[1762620545952,0.4884,3374.1,3374.0,2.96384113]
[1762620546152,0.9398,3374.1,3374.0,2.96384113]
[1762620546566,0.002,3374.1,3374.0,2.96384113]
[1762620546854,0.002,3374.1,3374.0,4.48361865]
[1762620547055,0.002,3374.1,3374.0,4.51325706]
[1762620547215,0.002,3374.1,3374.0,4.48361865]
[1762620547418,0.002,3374.1,3374.0,6.14883465]
[1762620549147,0.002,3374.1,3374.0,4.81633065]
[1762620549350,0.4884,3374.1,3374.0,4.81633065]
[1762620549548,0.4054,3374.5,3374.4,2.9634898]
[1762620549875,0.002,3374.8,3374.0,2.96384113]
[1762620549876,0.4864,3374.1,3374.0,2.96384113]
[1762620550695,0.4864,3374.1,3373.5,0.64247366]
[1762620550840,0.4864,3374.0,3373.9,2.96392898]
[1762620551768,0.9378,3374.0,3373.9,2.96392898]
[1762620552843,0.4514,3374.4,3374.3,2.96357763]
[1762620553290,0.4514,3374.4,3374.2,2.96362011]
[1762620553575,0.4514,3374.4,3374.3,2.96357763]
[1762620553981,0.9378,3374.4,3374.3,2.96357763]
[1762620554876,0.4864,3374.4,3374.3,2.96357763]
[1762620555345,0.5994,3374.7,3374.6,2.96331417]
[1762620555696,0.002,3374.8,3374.7,2.96322636]
[1762620555858,0.002,3374.8,3374.7,2.99285862]
[1762620556171,0.4884,3374.8,3374.7,2.99285862]
[1762620556379,0.4884,3374.8,3374.7,2.96322636]
[1762620556762,0.9398,3374.8,3373.7,1.259712]
[1762620556981,0.26,3374.7,3374.6,2.96324069]
[1762620557146,0.7114,3374.7,3374.1,3.86]
[1762620557348,0.7114,3374.7,3373.8,0.43604422]
[1762620557349,0.4534,3374.7,3374.6,2.96331417]
[1762620557780,0.9398,3374.7,3374.6,2.96331417]
[1762620558155,0.4884,3374.7,3374.6,2.96331417]
[1762620558556,0.002,3374.7,3374.6,3.86712683]
[1762620558780,0.002,3374.7,3374.6,7.72712683]
[1762620558980,0.002,3374.7,3374.6,7.87512683]
[1762620559215,0.002,3374.7,3374.6,7.72712683]
[1762620559359,0.002,3374.7,3374.6,8.33662683]
[1762620560460,0.002,3374.7,3374.6,8.18862683]
[1762620561086,0.002,3374.7,3374.6,8.65412683]
[1762620561758,0.005,3374.9,3374.8,2.96313855]
[1762620561972,0.005,3374.9,3374.8,4.58635631]
[1762620562258,0.005,3374.9,3374.8,5.05185631]
[1762620563200,0.002,3375.1,3375.0,2.96296296]
[1762620563380,0.002,3375.1,3375.0,4.71380458]
[1762620563696,0.002,3375.1,3375.0,9.03930458]
[1762620563901,0.002,3375.1,3375.0,9.76906522]
[1762620564988,1e-08,3375.4,3375.3,4.22241161]
[1762620565195,1e-08,3375.4,3375.3,5.1790386]
[1762620565392,1e-08,3375.4,3375.3,5.14941161]
[1762620565776,1e-08,3375.4,3375.3,4.68391161]
[1762620565974,1e-08,3375.4,3375.3,5.11995583]
[1762620567081,1e-08,3375.4,3375.3,5.58545583]
[1762620567281,1e-08,3375.4,3375.3,5.11995583]
[1762620567611,1e-08,3375.4,3375.3,4.65845583]
[1762620568597,1e-08,3375.4,3375.3,5.11995583]
[1762620568791,1e-08,3375.4,3375.3,5.58545583]
[1762620569619,1e-08,3375.4,3375.3,4.65845583]
[1762620569783,1e-08,3375.4,3375.3,5.11995583]
[1762620570419,1e-08,3375.4,3375.3,5.26795583]
[1762620570632,1e-08,3375.4,3375.3,4.80645583]
[1762620571291,0.49170001,3375.4,3375.3,4.37041161]
[1762620571735,0.96200001,3375.4,3375.3,3.11069961]
[1762620572511,0.96200001,3375.4,3375.1,2.9628677]
[1762620572826,0.148,3375.1,3375.0,2.96296296]
[1762620573250,1.304,3375.1,3374.5,0.148]
[1762620573551,0.4044,3374.6,3374.5,3.11140198]
[1762620573765,0.4044,3374.6,3374.5,2.96340198]
[1762620573959,0.194,3374.6,3374.5,2.96340198]
[1762620574270,1.156,3374.6,3374.5,2.96340198]
[1762620574439,0.6857,3374.6,3374.5,2.96340198]
[1762620574844,1.156,3374.6,3374.5,2.96340198]
[1762620577019,0.6857,3374.6,3374.5,2.96340198]
[1762620577215,0.4917,3374.6,3374.5,3.57099183]
[1762620577459,0.4917,3374.6,3374.5,3.71899183]
[1762620577620,0.342,3375.1,3375.0,2.96296296]
[1762620577820,0.194,3375.1,3375.0,2.96296296]
[1762620578032,0.6857,3375.1,3375.0,2.96296296]
[1762620578231,1.156,3375.1,3375.0,2.96296296]
[1762620579956,1.156,3375.1,3374.4,2.96445495]
[1762620580154,0.194,3375.1,3375.0,2.96296296]
[1762620580357,0.6857,3375.1,3375.0,3.11096296]
[1762620581228,1e-08,3375.4,3375.3,2.96269961]
[1762620581568,1e-08,3375.4,3375.3,3.41509961]
[1762620582670,1e-08,3375.4,3375.3,3.88409961]
[1762620582883,1e-08,3375.4,3375.3,4.39608512]
[1762620583861,1e-08,3375.4,3375.3,3.94368512]
[1762620584035,1e-08,3375.4,3375.3,4.39398512]
[1762620585575,0.94340001,3375.4,3375.3,3.94368512]
[1762620585878,0.94340001,3375.4,3375.3,2.96269961]
[1762620586270,0.94340001,3375.4,3374.4,0.2975455]
[1762620586470,0.2156,3375.2,3375.1,2.96287517]
[1762620586979,0.6876,3375.2,3375.1,2.96287517]
[1762620587822,0.6876,3375.2,3374.4,0.001]
[1762620588080,0.4689,3375.0,3374.9,2.96305075]
[1762620588458,0.9409,3375.0,3374.9,2.96305075]
[1762620588653,0.9409,3375.0,3374.4,0.001]
[1762620588842,0.6702,3374.5,3374.4,2.9644898]
[1762620589244,0.9434,3374.5,3374.4,2.9644898]
[1762620589685,0.9434,3374.5,3374.4,0.001]
[1762620590071,2.96366546,3374.2,3374.1,0.001]
[1762620590256,0.405504,3374.1,3372.9,0.001]
[1762620590463,0.6666,3373.2,3372.9,0.001]
[1762620590847,1.1386,3373.2,3372.9,0.001]
[1762620591883,1.1386,3373.2,3372.9,2.96579378]
[1762620592252,1.1386,3373.2,3372.9,0.001]
[1762620593578,2.96471983,3373.0,3372.9,0.001]
[1762620593774,1.24292959,3373.0,3372.9,0.001]
[1762620593981,1.71492959,3373.0,3372.9,0.001]
[1762620594353,2.12043359,3373.0,3372.9,0.001]
[1762620594781,1.71492959,3373.0,3372.9,0.001]
[1762620594980,0.6751,3373.0,3372.9,0.001]
[1762620595751,4.04532383,3373.0,3372.9,0.001]
[1762620596056,3.37057545,3372.6,3372.5,0.001]
[1762620596251,0.405504,3372.4,3372.2,0.001]
[1762620596569,5.6032319,3372.3,3372.2,0.001]
[1762620597096,6.0752319,3372.3,3372.2,0.001]
[1762620597967,2.70439267,3372.3,3372.2,0.001]
[1762620600359,5.6697279,3372.3,3372.2,0.001]
[1762620600610,2.70439267,3372.3,3372.2,0.001]
[1762620600773,0.472,3372.8,3372.4,2.96518534]
[1762620600961,0.4714,3372.3,3372.2,0.001]
[1762620601167,0.472,3373.1,3372.2,0.001]
[1762620601408,0.4549,3373.0,3372.2,0.001]
[1762620601716,0.1988,3373.2,3372.2,0.001]
[1762620601717,0.6537,3373.2,3372.2,0.001]
[1762620601863,0.4549,3373.1,3372.2,0.001]
[1762620602065,0.4549,3373.1,3372.6,2.96506594]
[1762620602264,0.4549,3373.1,3372.2,0.001]
[1762620602265,0.4549,3373.1,3372.3,2.96533523]
[1762620602465,0.4549,3373.1,3372.7,2.96497073]
[1762620602698,0.148,3372.7,3372.6,2.96498906]
[1762620603069,0.6298,3372.7,3372.6,2.96498906]
[1762620603494,1.0847,3372.7,3372.2,0.001]
[1762620603711,1.0847,3372.7,3372.5,2.96507785]
[1762620603883,1.0847,3372.7,3372.6,2.96507145]
[1762620604511,0.148,3372.7,3372.6,2.96507145]
[1762620604806,0.6298,3372.7,3372.6,2.96507145]
[1762620605197,0.148,3372.7,3372.6,2.96507145]
[1762620605369,1.0847,3372.7,3372.2,0.001]
[1762620605723,0.4818,3372.3,3372.2,0.001]
[1762620605902,0.4818,3372.3,3372.2,2.96642316]
[1762620606271,0.148,3372.5,3372.4,2.9652473]
[1762620606619,4.42312472,3373.2,3372.9,2.96473682]
[1762620606620,0.1988,3373.2,3372.9,2.96473682]
[1762620607113,0.6537,3373.2,3372.9,2.96475027]
[1762620607423,0.4818,3373.0,3372.9,2.96475027]
[1762620607920,0.9367,3373.0,3371.4,2.96612657]
[1762620608110,0.3495,3372.9,3372.2,0.001]
[1762620608272,0.6564,3372.9,3372.2,0.001]
[1762620608500,0.6029,3372.8,3372.6,2.96505844]
[1762620608718,0.4549,3372.8,3372.2,0.001]
[1762620608921,0.2015,3372.3,3372.2,0.001]
[1762620609120,0.2015,3372.3,3372.2,2.96642316]
[1762620609322,0.148,3372.5,3372.4,2.9652473]
[1762620609816,0.6298,3372.5,3372.4,2.9652473]
[1762620610015,1.0847,3372.5,3372.4,2.9652473]
[1762620610180,1.0847,3372.5,3372.3,2.96530449]
[1762620610386,0.4549,3372.4,3372.3,2.96630449]
[1762620610604,0.9367,3372.4,3372.3,0.001]
[1762620611124,0.9367,3372.4,3372.3,2.96633523]
[1762620611425,0.148,3372.5,3372.3,0.001]
[1762620611623,0.9367,3372.4,3372.3,0.001]
[1762620612118,0.148,3372.5,3372.3,2.96633523]
[1762620612297,0.9367,3372.4,3372.3,0.001]
[1762620612494,0.9367,3372.4,3372.3,2.96633523]
[1762620613297,0.9367,3372.4,3372.3,0.001]
[1762620613985,3.9019473,3372.4,3372.3,0.001]
[1762620614185,5.86316137,3372.4,3372.3,0.001]
[1762620614919,6.26866537,3372.4,3372.3,0.001]
[1762620615417,3.30341807,3372.4,3372.3,0.001]
[1762620615579,1.741512,3372.4,3372.3,0.001]
[1762620615912,2.196412,3372.4,3372.3,0.001]
[1762620616088,2.196412,3372.4,3372.3,2.96633523]
[1762620616921,2.196412,3372.4,3372.3,0.001]
[1762620618914,5.1616593,3372.4,3372.3,0.001]
[1762620619121,3.02388575,3372.4,3372.3,0.001]
[1762620619307,2.196412,3372.4,3372.3,0.001]
[1762620620696,5.1616593,3372.4,3372.3,0.001]
[1762620621108,2.196412,3372.4,3372.3,0.001]
[1762620622519,5.1616593,3372.4,3372.3,0.001]
[1762620622721,2.196412,3372.4,3372.3,0.001]
[1762620622892,2.4308532,3372.4,3372.3,0.001]
[1762620624898,5.3961005,3372.4,3372.3,0.001]
[1762620625324,2.4308532,3372.4,3372.3,0.001]
[1762620627142,2.4308532,3372.4,3371.9,0.001]
[1762620627143,2.96559905,3372.0,3371.9,0.001]
[1762620627351,5.38336173,3372.0,3371.9,0.001]
[1762620627643,5.38336173,3372.0,3371.1,1e-08]
[1762620627644,4.22557491,3371.7,3371.1,1e-08]
[1762620627947,4.42197491,3371.7,3371.1,1e-08]
[1762620628163,4.87687491,3371.7,3371.1,1e-08]
[1762620628726,5.28237891,3371.7,3371.1,1e-08]
[1762620628931,3.3718068,3371.2,3371.1,1e-08]
[1762620629102,5.1054188,3371.2,3371.1,1e-08]
[1762620629302,5.5603188,3371.2,3371.1,1e-08]
[1762620633421,0.9288,3371.2,3371.1,1e-08]
[1762620634352,5.1548148,3371.2,3371.1,1e-08]
[1762620634515,6.07577535,3371.2,3371.1,1e-08]
[1762620639274,5.62087535,3371.2,3371.1,1e-08]
[1762620639581,6.07097535,3371.2,3371.1,1e-08]
[1762620644978,6.07097535,3371.2,3370.1,0.005]
[1762620644979,3.37268695,3370.2,3370.1,0.005]
[1762620645152,5.30969895,3370.2,3370.1,0.005]
[1762620645946,5.45529895,3370.2,3370.1,0.005]
[1762620646196,5.30969895,3370.2,3370.1,0.005]
[1762620651993,5.77512145,3370.2,3370.1,0.005]
[1762620652307,6.6677818,3370.2,3370.1,0.005]
[1762620659111,6.1943818,3370.2,3370.1,0.005]
[1762620660705,5.5250593,3370.2,3370.1,0.005]
[1762620661429,6.4964593,3370.2,3370.1,0.005]
[1762620663782,3.37356763,3369.2,3369.1,0.005]
[1762620663984,5.46763639,3369.2,3369.1,0.005]
[1762620664411,4.97063639,3369.2,3369.1,0.4916]
[1762620665697,5.96623639,3369.2,3369.1,0.005]
[1762620665897,5.46763639,3369.2,3369.1,0.005]
[1762620666097,5.96623639,3369.2,3369.1,0.005]
[1762620667904,5.96623639,3369.2,3369.1,0.4916]
[1762620667905,2.00257276,3369.2,3369.1,0.4916]
[1762620668226,4.63327963,3369.2,3369.1,0.4916]
[1762620668727,1.665216,3369.2,3369.1,0.4916]
[1762620668938,1.665216,3369.2,3369.1,0.9735]
[1762620669144,1.259712,3369.2,3369.1,0.9735]
[1762620669429,0.405504,3369.5,3369.1,3.94163729]
[1762620669591,0.405504,3369.5,3369.2,0.4819]
[1762620669787,0.89212034,3370.4,3369.4,0.4866]
[1762620670028,3.6497824,3370.7,3369.6,0.4866]
[1762620670198,1.259712,3369.9,3369.6,0.4866]
[1762620670400,3.37274188,3370.2,3369.6,0.9685]
[1762620670599,4.32411472,3370.8,3370.2,0.636]
[1762620670600,0.46541684,3370.8,3370.2,0.636]
[1762620670828,2.96695173,3370.5,3370.3,0.4866]
[1762620671033,0.46541684,3370.8,3370.3,0.4866]
[1762620671192,0.148,3370.3,3370.2,0.1494]
[1762620671524,2.967271,3370.1,3370.0,0.1494]
[1762620671826,1.259712,3369.7,3369.6,0.4819]
[1762620672039,0.405504,3370.2,3369.6,0.4819]
[1762620672040,0.405504,3370.2,3369.6,3.44955027]
[1762620672218,0.405504,3370.2,3370.1,0.636]
[1762620672389,0.405504,3370.2,3369.0,0.1494]
[1762620672390,0.405504,3369.6,3369.0,0.1494]
[1762620672725,1.259712,3369.2,3369.0,0.1494]
[1762620673092,1.259712,3369.2,3369.1,0.4916]
[1762620673293,2.96772143,3369.6,3369.1,0.9735]
[1762620673608,2.96806363,3369.2,3369.1,0.005]
[1762620673995,3.37356763,3369.2,3369.1,0.005]
[1762620674601,0.405504,3369.2,3369.1,0.641]
[1762620674798,3.37356763,3369.2,3369.1,0.005]
[1762620675211,3.87056763,3369.2,3369.1,0.005]
[1762620675425,6.31273315,3369.2,3369.1,0.005]
[1762620675627,5.81413315,3369.2,3369.1,0.005]
[1762620675834,5.31713315,3369.2,3369.1,0.005]
[1762620677346,5.31713315,3369.2,3369.1,0.641]
[1762620677526,5.31713315,3369.2,3369.1,0.005]
[1762620678810,1.08935752,3369.2,3369.1,0.4916]
[1762620679017,0.405504,3369.2,3369.1,0.641]
[1762620679218,0.405504,3369.8,3369.1,1.1229]
[1762620679576,0.405504,3369.3,3369.1,1.1229]
[1762620680051,0.405504,3369.3,3369.2,0.9685]
[1762620680521,3.37347954,3369.3,3369.2,0.4866]
[1762620682157,0.405504,3369.3,3369.2,0.4866]
[1762620682330,0.405504,3369.3,3369.2,0.9685]
[1762620682731,3.37347954,3369.3,3369.2,0.9685]
[1762620682943,0.405504,3369.3,3369.2,0.9685]
[1762620683150,0.4986,3370.3,3369.2,0.9685]
[1762620683314,0.4986,3370.3,3369.1,0.1544]
[1762620683315,2.9676804,3369.7,3369.4,0.4866]
[1762620683520,2.96806363,3369.2,3369.1,0.005]
[1762620683819,0.405504,3369.3,3369.1,0.006]